[Event "Queens Festival Europe 2022"]
[Site "Tornelo"]
[Date "2022.06.19"]
[Round "5.3"]
[White "Rashidova, Nargiz"]
[Black "Ismayilova, Khanim"]
[Result "1/2-1/2"]
[ECO "D02"]
[WhiteElo "1341"]
[BlackElo "1647"]
[Annotator "NA RC"]
[PlyCount "41"]
[EventDate "2022.06.19"]
[EventType "swiss"]
[EventCountry "NET"]
[SourceTitle "playchess.com"]
[Source "ChessBase"]
[SourceQuality "1"]
[TimeControl "180+2"]

1. d4 {[%emt 0:00:02]} d5 {[%emt 0:00:04]} 2. Nf3 {[%emt 0:00:02]} Nf6 {[%emt 0:00:04]} 3. Bf4 {[%emt 0:00:02]} e6 {[%emt 0:00:01]} 4. e3 {[%emt 0:00:02]} Bd6 {[%emt 0:00:01]} 5. Bg3 {[%emt 0:00:02]} O-O {[%emt 0:00:02]} 6. Nbd2 {[%emt 0:00:02]} c5 {[%emt 0:00:01]} 7. c3 {[%emt 0:00:02]} b6 {[%emt 0:00:01]} 8. Bd3 {[%emt 0:00:01]} Ba6 {[%emt 0:00:01]} 9. Qe2 {[%emt 0:00:03]} Bxd3 {[%emt 0:00:03]} 10. Qxd3 {[%emt 0:00:01]} Nc6 {[%emt 0:00:02]} 11. Ne5 {[%emt 0:00:07]} Qc7 {[%emt 0:00:02]} 12. Ndf3 {[%emt 0:00:03]} Nd7 {[%emt 0:00:04]} 13. Ng5 {[%emt 0:00:13]} g6 {[%emt 0:00:03]} 14. Ngf3 {[%emt 0:00:23]} f6 {[%emt 0:00:02]} 15. Nxg6 {[%emt 0:00:47]} c4 {[%emt 0:01:01]} 16. Qc2 {[%emt 0:00:08]} hxg6 {[%emt 0:00:06]} 17. Qxg6+ {[%emt 0:00:04]} Kh8 {[%emt 0:00:01]} 18. Qh6+ {[%emt 0:00:02]} Kg8 {[%emt 0:00:02]} 19. Qg6+ {[%emt 0:00:21]} Kh8 {[%emt 0:00:03]} 20. Qh6+ {[%emt 0:00:05]} Kg8 {[%emt 0:00:01]} 21. Qg6+ {[%emt 0:00:01]} 1/2-1/2

[Event "Queens Festival Europe 2022"]
[Site "Tornelo"]
[Date "2022.06.19"]
[Round "5.4"]
[White "Kanyamarala, Trisha"]
[Black "Richtrova, Eliska"]
[Result "1-0"]
[ECO "A55"]
[WhiteElo "2127"]
[BlackElo "2204"]
[Annotator "NA RC"]
[PlyCount "83"]
[EventDate "2022.06.19"]
[EventType "swiss"]
[EventCountry "NET"]
[SourceTitle "playchess.com"]
[Source "ChessBase"]
[SourceQuality "1"]
[TimeControl "180+2"]

1. d4 {[%emt 0:00:02]} d6 {[%emt 0:00:06]} 2. Nf3 {[%emt 0:00:04]} Nd7 {[%emt 0:00:02]} 3. c4 {[%emt 0:00:16]} e5 {[%emt 0:00:03]} 4. Nc3 {[%emt 0:00:01]} Be7 {[%emt 0:00:04]} 5. e4 {[%emt 0:00:09]} Ngf6 {[%emt 0:00:13]} 6. Be2 {[%emt 0:00:05]} O-O {[%emt 0:00:03]} 7. O-O {[%emt 0:00:04]} c6 {[%emt 0:00:02]} 8. Qc2 {[%emt 0:00:05]} Re8 {[%emt 0:00:03]} 9. Rd1 {[%emt 0:00:06]} Qc7 {[%emt 0:00:02]} 10. h3 {[%emt 0:00:02]} Nf8 {[%emt 0:00:05]} 11. Be3 {[%emt 0:00:07]} Ng6 {[%emt 0:00:06]} 12. Rab1 {[%emt 0:00:18]} Bf8 {[%emt 0:00:09]} 13. d5 {[%emt 0:00:11]} Nh5 {[%emt 0:00:08]} 14. Bf1 {[%emt 0:00:12]} Nhf4 {[%emt 0:00:04]} 15. b4 {[%emt 0:00:10]} Qe7 {[%emt 0:00:08]} 16. c5 {[%emt 0:00:08]} Qf6 {[%emt 0:00:03]} 17. cxd6 {[%emt 0:00:21]} Bxd6 {[%emt 0:00:03]} 18. dxc6 {[%emt 0:00:04]} bxc6 {[%emt 0:00:02]} 19. b5 {[%emt 0:00:19]} Bd7 {[%emt 0:00:38]} 20. Qd2 {[%emt 0:00:13]} Re6 {[%emt 0:00:02]} 21. Nh2 {[%emt 0:00:34]} cxb5 {[%emt 0:00:13]} 22. Ng4 {[%emt 0:00:09]} Qh4 {[%emt 0:00:12]} 23. g3 {[%emt 0:00:03]} Nxh3+ {[%emt 0:00:05]} 24. Kh2 {[%emt 0:00:03]} Qxg4 {[%emt 0:00:01]} 25. Bxh3 {[%emt 0:00:01]} Qh5 {[%emt 0:00:04]} 26. Kg2 {[%emt 0:00:02]} Nf4+ {[%emt 0:00:10]} 27. Bxf4 {[%emt 0:00:01]} Rg6 {[%emt 0:00:14]} 28. Bxd7 {[%emt 0:00:05]} exf4 {[%emt 0:00:01]} 29. Rh1 {[%emt 0:00:02]} Qc5 {[%emt 0:00:13]} 30. Bf5 {[%emt 0:00:02]} fxg3 {[%emt 0:00:07]} 31. Bxg6 {[%emt 0:00:02]} hxg6 {[%emt 0:00:03]} 32. fxg3 {[%emt 0:00:01]} Rd8 {[%emt 0:00:03]} 33. Nd5 {[%emt 0:00:02]} Re8 {[%emt 0:00:09]} 34. Rbc1 {[%emt 0:00:01]} Qa3 {[%emt 0:00:06]} 35. Qe2 {[%emt 0:00:02]} Qxg3+ {[%emt 0:00:08]} 36. Kf1 {[%emt 0:00:02]} f5 {[%emt 0:00:08]} 37. Rc3 {[%emt 0:00:01]} Qg5 {[%emt 0:00:04]} 38. Re3 {[%emt 0:00:03]} f4 {[%emt 0:00:05]} 39. Rf3 {[%emt 0:00:01]} Qe5 {[%emt 0:00:04]} 40. Rg1 {[%emt 0:00:02]} g5 {[%emt 0:00:03]} 41. Rg4 {[%emt 0:00:04]} Qa1+ {[%emt 0:00:03]} 42. Kg2 {[%emt 0:00:02]} 1-0

[Event "Queens Festival Europe 2022"]
[Site "Tornelo"]
[Date "2022.06.19"]
[Round "5.4"]
[White "Stastna, Martina"]
[Black "Bordin, Silvia"]
[Result "0-1"]
[ECO "C89"]
[WhiteElo "1912"]
[BlackElo "1991"]
[Annotator "NA RC"]
[PlyCount "44"]
[EventDate "2022.06.19"]
[EventType "swiss"]
[EventCountry "NET"]
[SourceTitle "playchess.com"]
[Source "ChessBase"]
[SourceQuality "1"]
[TimeControl "180+2"]

1. e4 {[%emt 0:00:02]} e5 {[%emt 0:00:04]} 2. Nf3 {[%emt 0:00:02]} Nc6 {[%emt 0:00:01]} 3. Bb5 {[%emt 0:00:02]} a6 {[%emt 0:00:02]} 4. Ba4 {[%emt 0:00:01]} Nf6 {[%emt 0:00:03]} 5. O-O {[%emt 0:00:02]} Be7 {[%emt 0:00:02]} 6. Re1 {[%emt 0:00:10]} b5 {[%emt 0:00:02]} 7. Bb3 {[%emt 0:00:02]} O-O {[%emt 0:00:01]} 8. c3 {[%emt 0:00:02]} d5 {[%emt 0:00:02]} 9. exd5 {[%emt 0:00:03]} Nxd5 {[%emt 0:00:00]} 10. Nxe5 {[%emt 0:00:03]} Nxe5 {[%emt 0:00:00]} 11. Rxe5 {[%emt 0:00:02]} c6 {[%emt 0:00:01]} 12. d4 {[%emt 0:00:03]} Bd6 {[%emt 0:00:02]} 13. Re1 {[%emt 0:00:02]} Qh4 {[%emt 0:00:01]} 14. g3 {[%emt 0:00:05]} Qh3 {[%emt 0:00:02]} 15. Qd3 {[%emt 0:00:07]} Bg4 {[%emt 0:00:05]} 16. Qf1 {[%emt 0:00:02]} Qh5 {[%emt 0:00:02]} 17. Bd1 {[%emt 0:00:07]} Bxd1 {[%emt 0:00:18]} 18. Rxd1 {[%emt 0:00:02]} f5 {[%emt 0:00:01]} 19. Nd2 {[%emt 0:01:00]} f4 {[%emt 0:00:03]} 20. Re1 {[%emt 0:00:06]} fxg3 {[%emt 0:00:03]} 21. hxg3 {[%emt 0:00:06]} Bxg3 {[%emt 0:00:09]} 22. Ne4 {[%emt 0:00:03]} Qh2# {[%emt 0:00:03]} 0-1

[Event "Queens Festival Europe 2022"]
[Site "Tornelo"]
[Date "2022.06.19"]
[Round "5.4"]
[White "Bayona, Karin Silvana"]
[Black "Thornton, Filipina"]
[Result "1-0"]
[ECO "B84"]
[WhiteElo "1793"]
[BlackElo "1660"]
[Annotator "NA RC"]
[PlyCount "53"]
[EventDate "2022.06.19"]
[EventType "swiss"]
[EventCountry "NET"]
[SourceTitle "playchess.com"]
[Source "ChessBase"]
[SourceQuality "1"]
[TimeControl "180+2"]

1. e4 {[%emt 0:00:02]} c5 {[%emt 0:00:06]} 2. Nf3 {[%emt 0:00:03]} d6 {[%emt 0:00:01]} 3. d4 {[%emt 0:00:01]} cxd4 {[%emt 0:00:01]} 4. Nxd4 {[%emt 0:00:01]} e6 {[%emt 0:00:02]} 5. Nc3 {[%emt 0:00:01]} a6 {[%emt 0:00:01]} 6. Be3 {[%emt 0:00:03]} Nf6 {[%emt 0:00:03]} 7. Be2 {[%emt 0:00:04]} Be7 {[%emt 0:00:08]} 8. O-O {[%emt 0:00:05]} b5 {[%emt 0:00:04]} 9. a3 {[%emt 0:00:02]} Bb7 {[%emt 0:00:01]} 10. f3 {[%emt 0:00:03]} O-O {[%emt 0:00:03]} 11. Bd3 {[%emt 0:00:15]} Nc6 {[%emt 0:00:02]} 12. Nde2 {[%emt 0:00:05]} Rc8 {[%emt 0:00:02]} 13. f4 {[%emt 0:00:17]} Qc7 {[%emt 0:00:08]} 14. f5 {[%emt 0:00:10]} Ne5 {[%emt 0:00:06]} 15. Ng3 {[%emt 0:00:12]} Nc4 {[%emt 0:00:15]} 16. Bc1 {[%emt 0:00:07]} d5 {[%emt 0:00:15]} 17. exd5 {[%emt 0:00:08]} exd5 {[%emt 0:00:08]} 18. Kh1 {[%emt 0:00:08]} d4 {[%emt 0:00:01]} 19. Nce4 {[%emt 0:00:23]} Nd5 {[%emt 0:00:11]} 20. f6 {[%emt 0:00:38]} Bc5 {[%emt 0:00:32]} 21. fxg7 {[%emt 0:00:10]} Rfe8 {[%emt 0:00:05]} 22. Qh5 {[%emt 0:00:14]} Kxg7 {[%emt 0:00:52]} 23. Nf5+ {[%emt 0:00:08]} Kh8 {[%emt 0:00:08]} 24. Nh6 {[%emt 0:00:08]} Re7 {[%emt 0:00:09]} 25. Nf5 {[%emt 0:00:13]} Re5 {[%emt 0:00:06]} 26. Qh4 {[%emt 0:00:09]} Rg8 {[%emt 0:00:11]} 27. Nf6 {[%emt 0:00:01]} 1-0

[Event "Queens Festival Europe 2022"]
[Site "Tornelo"]
[Date "2022.06.19"]
[Round "5.4"]
[White "Rahimli, Ulkar"]
[Black "Helgadottir, Idunn"]
[Result "1-0"]
[ECO "D05"]
[WhiteElo "1268"]
[BlackElo "1570"]
[Annotator "NA RC"]
[PlyCount "49"]
[EventDate "2022.06.19"]
[EventType "swiss"]
[EventCountry "NET"]
[SourceTitle "playchess.com"]
[Source "ChessBase"]
[SourceQuality "1"]
[TimeControl "180+2"]

1. d4 {[%emt 0:00:02]} Nf6 {[%emt 0:00:06]} 2. Nf3 {[%emt 0:00:03]} e6 {[%emt 0:00:02]} 3. e3 {[%emt 0:00:03]} d5 {[%emt 0:00:01]} 4. Bd3 {[%emt 0:00:02]} c5 {[%emt 0:00:03]} 5. b3 {[%emt 0:00:03]} Nc6 {[%emt 0:00:10]} 6. a3 {[%emt 0:00:03]} a6 {[%emt 0:00:09]} 7. Bb2 {[%emt 0:00:03]} b5 {[%emt 0:00:03]} 8. c4 {[%emt 0:00:06]} bxc4 {[%emt 0:00:10]} 9. bxc4 {[%emt 0:00:03]} Bd6 {[%emt 0:00:14]} 10. O-O {[%emt 0:00:04]} cxd4 {[%emt 0:00:13]} 11. Nxd4 {[%emt 0:00:08]} Nxd4 {[%emt 0:00:15]} 12. Bxd4 {[%emt 0:00:03]} O-O {[%emt 0:00:11]} 13. cxd5 {[%emt 0:00:05]} Nxd5 {[%emt 0:00:17]} 14. Qh5 {[%emt 0:00:25]} h6 {[%emt 0:00:03]} 15. Nd2 {[%emt 0:00:15]} Bb7 {[%emt 0:00:09]} 16. Ne4 {[%emt 0:00:07]} Bc7 {[%emt 0:00:33]} 17. Rab1 {[%emt 0:00:21]} Rb8 {[%emt 0:00:08]} 18. Nc5 {[%emt 0:00:28]} Bc6 {[%emt 0:00:46]} 19. Rxb8 {[%emt 0:00:08]} Bxb8 {[%emt 0:00:04]} 20. Nxa6 {[%emt 0:00:04]} Bd6 {[%emt 0:00:02]} 21. f4 {[%emt 0:00:10]} Nf6 {[%emt 0:00:01]} 22. Qh3 {[%emt 0:00:13]} Ne4 {[%emt 0:00:02]} 23. Bxe4 {[%emt 0:00:06]} Bxe4 {[%emt 0:00:02]} 24. Qg3 {[%emt 0:00:02]} f6 {[%emt 0:00:04]} 25. Nc5 {[%emt 0:00:05]} 1-0

[Event "Queens Festival Europe 2022"]
[Site "Tornelo"]
[Date "2022.06.19"]
[Round "5.5"]
[White "Tsakona, Maria"]
[Black "Sikorova, Olga"]
[Result "0-1"]
[ECO "C07"]
[WhiteElo "2007"]
[BlackElo "2173"]
[Annotator "NA RC"]
[PlyCount "96"]
[EventDate "2022.06.19"]
[EventType "swiss"]
[EventCountry "NET"]
[SourceTitle "playchess.com"]
[Source "ChessBase"]
[SourceQuality "1"]
[TimeControl "180+2"]

1. e4 {[%emt 0:00:02]} e6 {[%emt 0:00:04]} 2. d4 {[%emt 0:00:02]} d5 {[%emt 0:00:01]} 3. Nd2 {[%emt 0:00:00]} c5 {[%emt 0:00:02]} 4. exd5 {[%emt 0:00:02]} Qxd5 {[%emt 0:00:02]} 5. dxc5 {[%emt 0:00:10]} Bxc5 {[%emt 0:00:03]} 6. Ngf3 {[%emt 0:00:01]} Nf6 {[%emt 0:00:02]} 7. Bc4 {[%emt 0:00:01]} Qc6 {[%emt 0:00:02]} 8. O-O {[%emt 0:00:05]} O-O {[%emt 0:00:03]} 9. Qe2 {[%emt 0:00:06]} a6 {[%emt 0:00:02]} 10. Bd3 {[%emt 0:00:02]} Nbd7 {[%emt 0:00:21]} 11. c3 {[%emt 0:00:06]} Qc7 {[%emt 0:00:03]} 12. Ne4 {[%emt 0:00:06]} Nxe4 {[%emt 0:00:03]} 13. Qxe4 {[%emt 0:00:03]} Nf6 {[%emt 0:00:02]} 14. Qh4 {[%emt 0:00:01]} Be7 {[%emt 0:00:39]} 15. Bf4 {[%emt 0:00:39]} Qa5 {[%emt 0:00:08]} 16. Be5 {[%emt 0:00:05]} h6 {[%emt 0:00:06]} 17. Qg3 {[%emt 0:00:16]} Bd7 {[%emt 0:00:13]} 18. Rfe1 {[%emt 0:00:11]} Bc6 {[%emt 0:00:03]} 19. Nd4 {[%emt 0:00:02]} Rfd8 {[%emt 0:00:12]} 20. Bc2 {[%emt 0:00:08]} Rd7 {[%emt 0:00:07]} 21. Qd3 {[%emt 0:00:17]} Qd5 {[%emt 0:00:18]} 22. Qg3 {[%emt 0:00:20]} Rad8 {[%emt 0:00:12]} 23. Bb3 {[%emt 0:00:16]} Qa5 {[%emt 0:00:11]} 24. Bxe6 {[%emt 0:00:16]} Rxd4 {[%emt 0:00:10]} 25. Bxf7+ {[%emt 0:00:05]} Kxf7 {[%emt 0:00:02]} 26. Bxd4 {[%emt 0:00:00]} Rd5 {[%emt 0:00:08]} 27. Re5 {[%emt 0:00:12]} Bd6 {[%emt 0:00:10]} 28. Rxd5 {[%emt 0:00:07]} Qxd5 {[%emt 0:00:02]} 29. Qh3 {[%emt 0:00:01]} Nh5 {[%emt 0:00:13]} 30. f3 {[%emt 0:00:02]} Nf4 {[%emt 0:00:06]} 31. Qg4 {[%emt 0:00:06]} Ne2+ {[%emt 0:00:02]} 32. Kh1 {[%emt 0:00:02]} Nxd4 {[%emt 0:00:01]} 33. cxd4 {[%emt 0:00:00]} Qb5 {[%emt 0:00:07]} 34. Re1 {[%emt 0:00:03]} Bd5 {[%emt 0:00:04]} 35. Qf5+ {[%emt 0:00:02]} Kg8 {[%emt 0:00:03]} 36. a4 {[%emt 0:00:03]} Qc6 {[%emt 0:00:02]} 37. h4 {[%emt 0:00:07]} b5 {[%emt 0:00:02]} 38. axb5 {[%emt 0:00:02]} axb5 {[%emt 0:00:02]} 39. Qg6 {[%emt 0:00:04]} Bf7 {[%emt 0:00:02]} 40. Qf5 {[%emt 0:00:04]} Qc7 {[%emt 0:00:03]} 41. Qxb5 {[%emt 0:00:02]} Bg3 {[%emt 0:00:02]} 42. Rd1 {[%emt 0:00:04]} Qd8 {[%emt 0:00:02]} 43. d5 {[%emt 0:00:03]} Qxh4+ {[%emt 0:00:01]} 44. Kg1 {[%emt 0:00:01]} Qh2+ {[%emt 0:00:01]} 45. Kf1 {[%emt 0:00:01]} Qh1+ {[%emt 0:00:01]} 46. Ke2 {[%emt 0:00:01]} Qxg2+ {[%emt 0:00:01]} 47. Ke3 {[%emt 0:00:03]} Qf2+ {[%emt 0:00:01]} 48. Ke4 {[%emt 0:00:02]} Bg6# {[%emt 0:00:01]} 0-1

[Event "Queens Festival Europe 2022"]
[Site "Tornelo"]
[Date "2022.06.19"]
[Round "5.5"]
[White "Gjergji, Rozana"]
[Black "Roy, Ali"]
[Result "1-0"]
[ECO "C02"]
[WhiteElo "1920"]
[BlackElo "1893"]
[Annotator "NA RC"]
[PlyCount "43"]
[EventDate "2022.06.19"]
[EventType "swiss"]
[EventCountry "NET"]
[SourceTitle "playchess.com"]
[Source "ChessBase"]
[SourceQuality "1"]
[TimeControl "180+2"]

1. e4 {[%emt 0:00:02]} e6 {[%emt 0:00:05]} 2. d4 {[%emt 0:00:04]} d5 {[%emt 0:00:02]} 3. e5 {[%emt 0:00:03]} c5 {[%emt 0:00:02]} 4. c3 {[%emt 0:00:03]} Nc6 {[%emt 0:00:03]} 5. f4 {[%emt 0:00:04]} cxd4 {[%emt 0:00:04]} 6. cxd4 {[%emt 0:00:03]} Qb6 {[%emt 0:00:03]} 7. Nf3 {[%emt 0:00:03]} Nge7 {[%emt 0:00:05]} 8. Na3 {[%emt 0:00:10]} Nf5 {[%emt 0:00:05]} 9. Nc2 {[%emt 0:00:03]} Bb4+ {[%emt 0:00:09]} 10. Bd2 {[%emt 0:00:08]} Ncxd4 {[%emt 0:00:24]} 11. Nxb4 {[%emt 0:00:14]} Nxf3+ {[%emt 0:00:04]} 12. Qxf3 {[%emt 0:00:02]} Nd4 {[%emt 0:00:06]} 13. Qd3 {[%emt 0:00:09]} a5 {[%emt 0:00:06]} 14. Nc2 {[%emt 0:00:09]} Qxb2 {[%emt 0:00:15]} 15. Qxd4 {[%emt 0:00:10]} Qxc2 {[%emt 0:00:04]} 16. Bb5+ {[%emt 0:00:05]} Bd7 {[%emt 0:00:04]} 17. Bxd7+ {[%emt 0:00:04]} Kxd7 {[%emt 0:00:00]} 18. O-O {[%emt 0:00:05]} Rac8 {[%emt 0:00:07]} 19. Rfc1 {[%emt 0:00:04]} Qf5 {[%emt 0:00:08]} 20. Qb6 {[%emt 0:00:07]} Rxc1+ {[%emt 0:00:39]} 21. Rxc1 {[%emt 0:00:04]} Rd8 {[%emt 0:00:13]} 22. Bxa5 {[%emt 0:00:13]} 1-0

[Event "Queens Festival Europe 2022"]
[Site "Tornelo"]
[Date "2022.06.19"]
[Round "5.5"]
[White "Bruntse, Caroline Lindegaard"]
[Black "Bakhshizada, Asnad"]
[Result "0-1"]
[ECO "D35"]
[WhiteElo "1503"]
[BlackElo "1052"]
[Annotator "NA RC"]
[PlyCount "76"]
[EventDate "2022.06.19"]
[EventType "swiss"]
[EventCountry "NET"]
[SourceTitle "playchess.com"]
[Source "ChessBase"]
[SourceQuality "1"]
[TimeControl "180+2"]

1. d4 {[%emt 0:00:02]} d5 {[%emt 0:00:05]} 2. c4 {[%emt 0:00:02]} e6 {[%emt 0:00:02]} 3. cxd5 {[%emt 0:00:02]} exd5 {[%emt 0:00:02]} 4. Nc3 {[%emt 0:00:03]} Nf6 {[%emt 0:00:02]} 5. Bg5 {[%emt 0:00:03]} Be7 {[%emt 0:00:03]} 6. e3 {[%emt 0:00:03]} O-O {[%emt 0:00:06]} 7. Nf3 {[%emt 0:00:05]} Bg4 {[%emt 0:00:03]} 8. Be2 {[%emt 0:00:04]} c6 {[%emt 0:00:03]} 9. h3 {[%emt 0:00:02]} Bh5 {[%emt 0:00:09]} 10. O-O {[%emt 0:00:06]} h6 {[%emt 0:00:02]} 11. Bxf6 {[%emt 0:00:04]} Bxf6 {[%emt 0:00:04]} 12. Rc1 {[%emt 0:00:03]} Nd7 {[%emt 0:00:02]} 13. a3 {[%emt 0:00:03]} Re8 {[%emt 0:00:05]} 14. Re1 {[%emt 0:00:07]} Nf8 {[%emt 0:00:05]} 15. b4 {[%emt 0:00:06]} Ne6 {[%emt 0:00:03]} 16. Na4 {[%emt 0:00:05]} Rc8 {[%emt 0:00:14]} 17. Nc5 {[%emt 0:00:05]} Nxc5 {[%emt 0:00:03]} 18. bxc5 {[%emt 0:00:05]} b6 {[%emt 0:00:02]} 19. Ba6 {[%emt 0:00:18]} Rc7 {[%emt 0:00:07]} 20. Be2 {[%emt 0:00:14]} bxc5 {[%emt 0:00:04]} 21. Rxc5 {[%emt 0:00:05]} Be7 {[%emt 0:00:04]} 22. Rc3 {[%emt 0:00:10]} Rc8 {[%emt 0:00:04]} 23. Qa4 {[%emt 0:00:23]} Qb6 {[%emt 0:00:16]} 24. Rb3 {[%emt 0:00:20]} Qc7 {[%emt 0:00:05]} 25. Reb1 {[%emt 0:00:10]} Ra8 {[%emt 0:00:22]} 26. Rb7 {[%emt 0:00:05]} Qd6 {[%emt 0:00:03]} 27. Rxa7 {[%emt 0:00:07]} Rxa7 {[%emt 0:00:02]} 28. Qxa7 {[%emt 0:00:02]} Qxa3 {[%emt 0:00:02]} 29. Qxa3 {[%emt 0:00:04]} Bxa3 {[%emt 0:00:04]} 30. Rb3 {[%emt 0:00:04]} Bd6 {[%emt 0:00:03]} 31. Rc3 {[%emt 0:00:09]} Rc8 {[%emt 0:00:05]} 32. g4 {[%emt 0:00:09]} Bg6 {[%emt 0:00:03]} 33. Bb5 {[%emt 0:00:08]} Be4 {[%emt 0:00:17]} 34. Nh2 {[%emt 0:00:17]} Rb8 {[%emt 0:00:14]} 35. Rxc6 {[%emt 0:00:11]} Bxh2+ {[%emt 0:00:06]} 36. Kxh2 {[%emt 0:00:03]} Rxb5 {[%emt 0:00:02]} 37. Rc8+ {[%emt 0:00:01]} Kh7 {[%emt 0:00:04]} 38. Kg3 {[%emt 0:00:03]} Rb1 {[%emt 0:00:03]} 0-1

[Event "Queens Festival Europe 2022"]
[Site "Tornelo"]
[Date "2022.06.19"]
[Round "5.6"]
[White "Ayzenberg, Alena"]
[Black "Ismayil, Malak"]
[Result "0-1"]
[ECO "E11"]
[WhiteElo "2016"]
[BlackElo "2001"]
[Annotator "NA RC"]
[PlyCount "72"]
[EventDate "2022.06.19"]
[EventType "swiss"]
[EventCountry "NET"]
[SourceTitle "playchess.com"]
[Source "ChessBase"]
[SourceQuality "1"]
[TimeControl "180+2"]

1. d4 {[%emt 0:00:02]} Nf6 {[%emt 0:00:05]} 2. c4 {[%emt 0:00:03]} e6 {[%emt 0:00:01]} 3. Nf3 {[%emt 0:00:02]} Bb4+ {[%emt 0:00:02]} 4. Bd2 {[%emt 0:00:02]} Qe7 {[%emt 0:00:02]} 5. Nc3 {[%emt 0:00:02]} O-O {[%emt 0:00:01]} 6. g3 {[%emt 0:00:05]} Nc6 {[%emt 0:00:03]} 7. Bg2 {[%emt 0:00:03]} d6 {[%emt 0:00:01]} 8. O-O {[%emt 0:00:05]} Bxc3 {[%emt 0:00:01]} 9. Bxc3 {[%emt 0:00:03]} e5 {[%emt 0:00:01]} 10. d5 {[%emt 0:00:06]} Nb8 {[%emt 0:00:02]} 11. Qc2 {[%emt 0:00:08]} a5 {[%emt 0:00:12]} 12. b3 {[%emt 0:00:09]} Nbd7 {[%emt 0:00:04]} 13. a3 {[%emt 0:00:11]} c6 {[%emt 0:00:23]} 14. e4 {[%emt 0:00:19]} Nc5 {[%emt 0:00:04]} 15. Nd2 {[%emt 0:00:09]} h5 {[%emt 0:00:31]} 16. b4 {[%emt 0:00:10]} Ncd7 {[%emt 0:00:02]} 17. h4 {[%emt 0:00:12]} Re8 {[%emt 0:00:05]} 18. Nf3 {[%emt 0:00:28]} Nf8 {[%emt 0:00:07]} 19. Ng5 {[%emt 0:00:04]} N6h7 {[%emt 0:00:09]} 20. Nf3 {[%emt 0:00:13]} f5 {[%emt 0:00:26]} 21. exf5 {[%emt 0:00:08]} Qf7 {[%emt 0:00:02]} 22. Nd2 {[%emt 0:00:26]} Bxf5 {[%emt 0:00:02]} 23. Be4 {[%emt 0:00:05]} g6 {[%emt 0:00:08]} 24. Bxf5 {[%emt 0:00:05]} gxf5 {[%emt 0:00:01]} 25. Nf3 {[%emt 0:00:13]} cxd5 {[%emt 0:00:13]} 26. cxd5 {[%emt 0:00:02]} Rac8 {[%emt 0:00:05]} 27. Qd2 {[%emt 0:00:07]} Ng6 {[%emt 0:00:07]} 28. Ng5 {[%emt 0:00:04]} Nxg5 {[%emt 0:00:02]} 29. hxg5 {[%emt 0:00:03]} f4 {[%emt 0:00:03]} 30. Bb2 {[%emt 0:00:03]} Qf5 {[%emt 0:00:03]} 31. Kg2 {[%emt 0:00:03]} f3+ {[%emt 0:00:03]} 32. Kh2 {[%emt 0:00:02]} Rc2 {[%emt 0:00:08]} 33. Qe3 {[%emt 0:00:02]} Rxb2 {[%emt 0:00:01]} 34. bxa5 {[%emt 0:00:02]} Qg4 {[%emt 0:00:18]} 35. Rac1 {[%emt 0:00:03]} Nf4 {[%emt 0:00:05]} 36. Rh1 {[%emt 0:00:04]} Qh3+ {[%emt 0:00:02]} 0-1

[Event "Queens Festival Europe 2022"]
[Site "Tornelo"]
[Date "2022.06.19"]
[Round "5.6"]
[White "Can, Isil"]
[Black "Sava, Ana-Maria"]
[Result "1-0"]
[ECO "B84"]
[WhiteElo "1901"]
[BlackElo "1916"]
[Annotator "NA RC"]
[PlyCount "101"]
[EventDate "2022.06.19"]
[EventType "swiss"]
[EventCountry "NET"]
[SourceTitle "playchess.com"]
[Source "ChessBase"]
[SourceQuality "1"]
[TimeControl "180+2"]

1. e4 {[%emt 0:00:02]} c5 {[%emt 0:00:04]} 2. Nf3 {[%emt 0:00:02]} d6 {[%emt 0:00:02]} 3. d4 {[%emt 0:00:01]} cxd4 {[%emt 0:00:02]} 4. Nxd4 {[%emt 0:00:01]} Nf6 {[%emt 0:00:01]} 5. Nc3 {[%emt 0:00:02]} a6 {[%emt 0:00:02]} 6. Be2 {[%emt 0:00:07]} e6 {[%emt 0:00:03]} 7. a4 {[%emt 0:00:07]} Be7 {[%emt 0:00:02]} 8. Be3 {[%emt 0:00:03]} h6 {[%emt 0:00:03]} 9. O-O {[%emt 0:00:03]} O-O {[%emt 0:00:03]} 10. f4 {[%emt 0:00:07]} Nc6 {[%emt 0:00:05]} 11. Qd2 {[%emt 0:00:11]} Nxd4 {[%emt 0:00:06]} 12. Bxd4 {[%emt 0:00:02]} Qc7 {[%emt 0:00:02]} 13. Qe3 {[%emt 0:00:27]} Bd7 {[%emt 0:00:31]} 14. Bb6 {[%emt 0:00:29]} Qc6 {[%emt 0:00:07]} 15. a5 {[%emt 0:00:01]} e5 {[%emt 0:00:14]} 16. fxe5 {[%emt 0:00:22]} dxe5 {[%emt 0:00:02]} 17. Qg3 {[%emt 0:00:01]} Kh7 {[%emt 0:00:04]} 18. Bd3 {[%emt 0:00:06]} Bc5+ {[%emt 0:00:05]} 19. Kh1 {[%emt 0:00:17]} Bxb6 {[%emt 0:00:10]} 20. axb6 {[%emt 0:00:02]} Rae8 {[%emt 0:00:08]} 21. Nd5 {[%emt 0:00:04]} Nh5 {[%emt 0:00:19]} 22. Qh4 {[%emt 0:00:11]} Qg6 {[%emt 0:00:07]} 23. Be2 {[%emt 0:00:26]} Nf4 {[%emt 0:00:10]} 24. Nxf4 {[%emt 0:00:03]} exf4 {[%emt 0:00:02]} 25. Rxf4 {[%emt 0:00:01]} Bc6 {[%emt 0:00:02]} 26. Bd3 {[%emt 0:00:03]} Re5 {[%emt 0:00:06]} 27. Raf1 {[%emt 0:00:09]} Rh5 {[%emt 0:00:18]} 28. Qf2 {[%emt 0:00:23]} Qd6 {[%emt 0:00:20]} 29. e5+ {[%emt 0:00:02]} Qxd3 {[%emt 0:00:03]} 30. cxd3 {[%emt 0:00:00]} Rxe5 {[%emt 0:00:06]} 31. Rxf7 {[%emt 0:00:02]} Rfe8 {[%emt 0:00:02]} 32. Rf5 {[%emt 0:00:01]} Re2 {[%emt 0:00:03]} 33. h3 {[%emt 0:00:04]} Rxf2 {[%emt 0:00:04]} 34. R5xf2 {[%emt 0:00:01]} Rd8 {[%emt 0:00:04]} 35. Rd2 {[%emt 0:00:01]} Rd4 {[%emt 0:00:03]} 36. Rff2 {[%emt 0:00:02]} Rb4 {[%emt 0:00:03]} 37. Rf7 {[%emt 0:00:02]} Rxb6 {[%emt 0:00:03]} 38. d4 {[%emt 0:00:01]} Bd5 {[%emt 0:00:02]} 39. Rd7 {[%emt 0:00:01]} Be4 {[%emt 0:00:05]} 40. Rd8 {[%emt 0:00:02]} Rf6 {[%emt 0:00:06]} 41. d5 {[%emt 0:00:02]} Rf1+ {[%emt 0:00:02]} 42. Kh2 {[%emt 0:00:01]} b5 {[%emt 0:00:06]} 43. d6 {[%emt 0:00:01]} Rf7 {[%emt 0:00:03]} 44. d7 {[%emt 0:00:01]} Bc6 {[%emt 0:00:02]} 45. Rd6 {[%emt 0:00:04]} Be4 {[%emt 0:00:06]} 46. Rh8+ {[%emt 0:00:03]} Kxh8 {[%emt 0:00:05]} 47. d8=Q+ {[%emt 0:00:02]} Kh7 {[%emt 0:00:01]} 48. Re6 {[%emt 0:00:01]} Bf5 {[%emt 0:00:03]} 49. Re8 {[%emt 0:00:01]} Kg6 {[%emt 0:00:04]} 50. Qd6+ {[%emt 0:00:02]} Rf6 {[%emt 0:00:01]} 51. Qd4 {[%emt 0:00:01]} 1-0